Workbook

Sheet Eff Value Inputs and Data
A1: IMM + Material | J1: IMM Only
A2: hours / year | B2: =52*7*24 -> 8736 | J2: hours / year | K2: =52*7*24 -> 8736
A3: % utility | B3: 0.6 | J3: % utility | K3: =B3 -> 0.6
A4: Working hous | B4: =B2*B3 -> 5241.6 | J4: Working hous | K4: =K2*K3 -> 5241.6
A6: rate $ / hour | B6: 76 | C6: median mapp selling rate | J6: rate $ / hour | K6: =B6 -> 76 | L6: median mapp selling rate
A8: revenue IMM | B8: =B6*B4 -> 398361.6 | J8: revenue IMM | K8: =K6*K4 -> 398361.6
A9: material multiplier | B9: 2 | J9: material multiplier | K9: 1
A10: Revenue Production | B10: =B8*B9 -> 796723.2 | J10: Revenue Production | K10: =K8*K9 -> 398361.6
A13: revenue | B13: =B10 -> 796723.2 | J13: revenue | K13: =K10 -> 398361.6
A14: margin | B14: 0.15 | J14: margin | K14: =B14 -> 0.15
A15: baseline eff | B15: 0.65 | J15: baseline eff | K15: =B15 -> 0.65
A16: profit | B16: =B13*B14 -> 119508.48 | J16: profit | K16: =K13*K14 -> 59754.24
A17: cost | B17: =B13*(1-B14) -> 677214.72 | J17: cost | K17: =K13*(1-K14) -> 338607.36
A18: cost at 100% eff | B18: =B17*B15 -> 440189.568 | J18: cost at 100% eff | K18: =K17*K15 -> 220094.784
B63: Data for Efficiency Value Chart
B64: workcell eff | C64: cost | D64: profit | E64: delta IMM+Material | K64: workcell eff | L64: cost | M64: profit | N64: delta IMM
B65: =B15-(0.005*14) -> 0.58 | C65: =$B$18/B65 -> 758947.531 | D65: =$B$13-C65 -> 37775.66897 | E65: =D65-$B$16 -> -81732.81103 | K65: =B65 -> 0.58 | L65: =$K$18/K65 -> 379473.7655 | M65: =$K$13-L65 -> 18887.83448 | N65: =M65-$K$16 -> -40866.40552
B66: =B65+0.005 -> 0.585 | C66: 752460.8 | D66: 44262.4 | E66: =D66-$B$16 -> -75246.08 | K66: =B66 -> 0.585 | L66: =$K$18/K66 -> 376230.4 | M66: =$K$13-L66 -> 22131.2 | N66: =M66-$K$16 -> -37623.04
B67: =B66+0.005 -> 0.59 | C67: 746084.0136 | D67: 50639.18644 | E67: -68869.29356 | K67: 0.59 | L67: 373042.0068 | M67: 25319.59322 | N67: -34434.64678
B68: 0.595 | C68: 739814.4 | D68: 56908.8 | E68: -62599.68 | K68: 0.595 | L68: 369907.2 | M68: 28454.4 | N68: -31299.84
B69: 0.6 | C69: 733649.28 | D69: 63073.92 | E69: -56434.56 | K69: 0.6 | L69: 366824.64 | M69: 31536.96 | N69: -28217.28
B70: 0.605 | C70: 727586.0628 | D70: 69137.13719 | E70: -50371.34281 | K70: 0.605 | L70: 363793.0314 | M70: 34568.5686 | N70: -25185.6714
B71: 0.61 | C71: 721622.2426 | D71: 75100.95738 | E71: -44407.52262 | K71: 0.61 | L71: 360811.1213 | M71: 37550.47869 | N71: =M71-$K$16 -> -22203.76131
B72: 0.615 | C72: 715755.3951 | D72: 80967.80488 | E72: -38540.67512 | K72: 0.615 | L72: 357877.6976 | M72: 40483.90244 | N72: -19270.33756
B73: 0.62 | C73: 709983.1742 | D73: 86740.02581 | E73: -32768.45419 | K73: 0.62 | L73: 354991.5871 | M73: 43370.0129 | N73: -16384.2271
B74: 0.625 | C74: 704303.3088 | D74: 92419.8912 | E74: -27088.5888 | K74: 0.625 | L74: 352151.6544 | M74: 46209.9456 | N74: -13544.2944
B75: 0.63 | C75: 698713.6 | D75: 98009.6 | E75: -21498.88 | K75: 0.63 | L75: 349356.8 | M75: 49004.8 | N75: -10749.44
B76: 0.635 | C76: 693211.9181 | D76: 103511.2819 | E76: -15997.19811 | K76: 0.635 | L76: 346605.9591 | M76: 51755.64094 | N76: -7998.599055
B77: 0.64 | C77: 687796.2 | D77: 108927 | E77: -10581.48 | K77: 0.64 | L77: 343898.1 | M77: 54463.5 | N77: -5290.74
B78: 0.645 | C78: 682464.4465 | D78: 114258.7535 | E78: -5249.726512 | K78: 0.645 | L78: 341232.2233 | M78: 57129.37674 | N78: -2624.863256
B79: 0.65 | C79: =$B$18/B79 -> 677214.72 | D79: 119508.48 | E79: 1.164153218e-10 | K79: 0.65 | L79: 338607.36 | M79: 59754.24 | N79: 5.820766091e-11
B80: 0.655 | C80: 672045.142 | D80: 124678.058 | E80: 5169.578015 | K80: 0.655 | L80: 336022.571 | M80: 62339.02901 | N80: 2584.789008
A81: +1% | B81: 0.66 | C81: =$B$18/B81 -> 666953.8909 | D81: 129769.3091 | E81: 10260.82909 | K81: 0.66 | L81: 333476.9455 | M81: 64884.65455 | N81: 5130.414545
B82: 0.665 | C82: 661939.2 | D82: 134784 | E82: 15275.52 | K82: 0.665 | L82: 330969.6 | M82: 67392 | N82: 7637.76
B83: 0.67 | C83: 656999.3552 | D83: 139723.8448 | E83: 20215.36478 | K83: 0.67 | L83: 328499.6776 | M83: 69861.92239 | N83: 10107.68239
B84: 0.675 | C84: 652132.6933 | D84: 144590.5067 | E84: 25082.02667 | K84: 0.675 | L84: 326066.3467 | M84: 72295.25333 | N84: 12541.01333
B85: 0.68 | C85: 647337.6 | D85: 149385.6 | E85: 29877.12 | K85: 0.68 | L85: 323668.8 | M85: 74692.8 | N85: 14938.56
B86: 0.685 | C86: 642612.508 | D86: 154110.692 | E86: 34602.21197 | K86: 0.685 | L86: 321306.254 | M86: 77055.34599 | N86: 17301.10599
B87: 0.69 | C87: 637955.8957 | D87: 158767.3043 | E87: 39258.82435 | K87: 0.69 | L87: 318977.9478 | M87: 79383.65217 | N87: 19629.41217
B88: 0.695 | C88: 633366.2849 | D88: 163356.9151 | E88: 43848.43511 | K88: 0.695 | L88: 316683.1424 | M88: 81678.45755 | N88: 21924.21755
B89: 0.7 | C89: 628842.24 | D89: 167880.96 | E89: 48372.48 | K89: 0.7 | L89: 314421.12 | M89: 83940.48 | N89: 24186.24
B90: 0.705 | C90: 624382.366 | D90: 172340.834 | E90: 52832.35404 | K90: 0.705 | L90: 312191.183 | M90: 86170.41702 | N90: 26416.17702
B91: 0.71 | C91: 619985.307 | D91: 176737.893 | E91: 57229.41296 | K91: 0.71 | L91: 309992.6535 | M91: 88368.94648 | N91: 28614.70648
B92: 0.715 | C92: 615649.7455 | D92: 181073.4545 | E92: 61564.97455 | K92: 0.715 | L92: 307824.8727 | M92: 90536.72727 | N92: 30782.48727
B93: 0.72 | C93: 611374.4 | D93: 185348.8 | E93: 65840.32 | K93: 0.72 | L93: 305687.2 | M93: 92674.4 | N93: 32920.16
B94: 0.725 | C94: 607158.0248 | D94: 189565.1752 | E94: 70056.69517 | K94: 0.725 | L94: 303579.0124 | M94: 94782.58759 | N94: 35028.34759
B95: 0.73 | C95: 602999.4082 | D95: 193723.7918 | E95: 74215.31178 | K95: 0.73 | L95: 301499.7041 | M95: 96861.89589 | N95: 37107.65589

Sheet Improvment Value Data (Static)
A1: The values below used for the 1% Improvement Value Chart are Static and do not change with inputs to the Eff Value Inputs and Data worksheet
A2: inputs for the data below are as follows
A3: material multiplier = 2
A4: margin = 15%
A6: Utilization | B6: workcell efficiency
B7: 0.25 | C7: 0.4 | D7: 0.55 | E7: 0.7 | F7: 0.85
A8: 25 IMM+Mat | B8: 10853 | C8: 6882 | D8: 5039 | E8: 3974 | F8: 3281
A9: 50 IMM+Mat | B9: 21706 | C9: 13765 | D9: 10078 | E9: 7948 | F9: 6562
A10: 75 IMM+Mat | B10: 32558 | C10: 20647 | D10: 15116 | E10: 11992 | F10: 9834
B12: =B7 -> 0.25 | C12: =C7 -> 0.4 | D12: 0.55 | E12: 0.7 | F12: 0.85
A13: 25 IMM | B13: =B8/2 -> 5426.5 | C13: =C8/2 -> 3441 | D13: 2519.5 | E13: 1987 | F13: 1640.5
A14: 50 IMM | B14: =B9/2 -> 10853 | C14: 6882.5 | D14: 5039 | E14: 3974 | F14: 3281
A15: 75 IMM | B15: 16279 | C15: 10323.5 | D15: 7558 | E15: 5996 | F15: 4917
